fUST/lending_fUST_20250925
["ID","MTS","AMOUNT","RATE_DAILY","PERIOD"]
[387594161,1758778246182,-816.66,0.00023997,2]
[387594163,1758778246191,-1478.01,0.00024,2]
[387594165,1758778246201,-661.44,0.00024,14]
[387594167,1758778246210,-250.0,0.00024116,2]
[387594169,1758778246219,-182.7,0.00024147,4]
[387594171,1758778246229,-1224.46655615,0.00024187,2]
[387594173,1758778246239,-403.99053742,0.0002427,2]
[387594175,1758778246249,-505.80481214,0.0002427,2]
[387594177,1758778246258,-517.72036655,0.00024271,2]
[387594179,1758778246267,-816.66,0.00024271,2]
[387594181,1758778246277,-728.65,0.00024531,2]
[387594183,1758778246286,-816.66,0.00024545,2]
[387594185,1758778246296,-10356.2128593,0.00024643,2]
[387594187,1758778246306,-164.502952,0.00024643,7]
[387594190,1758778246315,-164.502952,0.00024643,7]
[387594192,1758778246325,-164.502952,0.00024643,7]
[387594194,1758778246335,-164.502952,0.00024643,7]
[387594196,1758778246344,-151.0,0.00024643,7]
[387594198,1758778246354,-175.722088,0.00024643,7]
[387594200,1758778246363,-175.722088,0.00024643,7]
[387594202,1758778246373,-153.013734,0.00024643,7]
[387594204,1758778246382,-175.722088,0.00024643,7]
[387594206,1758778246392,-175.722088,0.00024643,7]
[387594208,1758778246403,-151.0,0.00024658,2]
[387594210,1758778246412,-151.0,0.00024773,7]
[387594212,1758778246421,-151.0,0.00024773,7]
[387594214,1758778246430,-151.0,0.00024773,7]
[387594216,1758778246440,-151.0,0.00024773,7]
[387594218,1758778246449,-151.0,0.00024773,7]
[387594220,1758778246459,-150.0,0.000248,10]
[387594222,1758778246468,-6772.0584609,0.000248,2]
[387594224,1758778246478,-816.66,0.00024819,2]
[387594226,1758778246488,-443.97209553,0.0002486,2]
[387594228,1758778246498,-451.47056406,0.00024863,2]
[387594230,1758778246508,-500.0,0.00024873,2]
[387594232,1758778246518,-503.7384078,0.00024873,2]
[387594234,1758778246527,-500.0,0.00024873,2]
[387594236,1758778246537,-1805.88225624,0.0002489,2]
[387594238,1758778246547,-242.36645541,0.000249,2]
[387594240,1758778246557,-151.0,0.000249,2]
[387594242,1758778246566,-151.89653285,0.000249,2]
[387594244,1758778246575,-158.606774,0.000249,7]
[387594246,1758778246585,-151.0,0.000249,7]
[387594248,1758778246595,-151.0,0.000249,7]
[387594250,1758778246605,-167.318059,0.000249,7]
[387594253,1758778246614,-151.0,0.000249,7]
[387594255,1758778246623,-153.124884,0.000249,7]
[387594257,1758778246633,-151.0,0.000249,7]
[387594258,1758778246645,-152.333578,0.000249,7]
[387594261,1758778246656,-151.0,0.000249,7]
[387594263,1758778246666,-151.0,0.000249,7]
[387594265,1758778246675,-151.0,0.000249,7]
[387594267,1758778246685,-151.0,0.000249,7]
[387594269,1758778246695,-151.0,0.000249,7]
[387594271,1758778246705,-151.0,0.000249,7]
[387594273,1758778246714,-151.0,0.000249,7]
[387594275,1758778246724,-151.0,0.000249,7]
[387594277,1758778246734,-151.0,0.000249,7]
[387594279,1758778246743,-422387.37999179,0.000249,2]
[387594294,1758778246884,-499.84498605,0.00019339,2]
[387594296,1758778246895,-36.27431484,0.00020162,2]
[387594299,1758778246906,-443.72568516,0.00020162,2]
[387594301,1758778246915,-480.0,0.00020436,2]
[387594303,1758778246925,-480.0,0.0002071,2]
[387594305,1758778246935,-480.0,0.00020984,2]
[387594306,1758778246944,-480.0,0.00021258,2]
[387594307,1758778246954,-480.0,0.00021531,2]
[387594308,1758778246963,-480.0,0.00021532,2]
[387594309,1758778246973,-480.0,0.00021805,2]
[387594310,1758778246983,-480.0,0.00021806,2]
[387594311,1758778246992,-480.0,0.00022079,2]
[387594312,1758778247002,-480.0,0.0002208,2]
[387594313,1758778247012,-1951.86,0.00022891,10]
[387594314,1758778247021,-7674.25546029,0.000249,2]
[387594315,1758778247051,-860.72767021,0.000249,2]
[387594316,1758778247065,-397.4916,0.000249,2]
[387594385,1758778680107,206.82,0.00015984,2]
[387594386,1758778680395,206.82,0.00015984,2]
[387594387,1758778680937,206.82,0.00015984,2]
[387594427,1758779168638,-300.0,0.00019336,2]
[387594428,1758779168668,-1200.0,0.00019337,2]
[387594429,1758779168702,-221.0,0.00019337,2]
[387594430,1758779168731,-173.0,0.00019337,2]
[387594431,1758779168759,-300.0,0.00019337,2]
[387594432,1758779168788,-480.0,0.00019337,2]
[387594433,1758779168819,-480.0,0.00019337,2]
[387594434,1758779168847,-485.04190253,0.00019338,2]
[387594435,1758779168876,-490.58265998,0.00019338,2]
[387594436,1758779168904,-480.0,0.00019338,2]
[387594437,1758779168933,-300.76087498,0.00019338,2]
[387594438,1758779176587,-179.23912502,0.00019338,2]
[387594439,1758779176618,-480.0,0.00019338,2]
[387594440,1758779176648,-480.0,0.00019338,2]
[387594441,1758779176677,-480.0,0.00019338,2]
[387594442,1758779176707,-480.0,0.00019338,2]
[387594443,1758779176736,-467.37971275,0.00019338,2]
[387594444,1758779176765,-486.56926054,0.00019338,2]
[387594445,1758779176794,-480.0,0.00019338,2]
[387594446,1758779176823,-480.0,0.00019338,2]
[387594447,1758779176851,-480.0,0.00019338,2]
[387594448,1758779176881,-332.11720013,0.00019338,2]
[387594449,1758779177093,-480.0,0.00019338,2]
[387594450,1758779177124,-481.61269337,0.00019338,2]
[387594451,1758779177155,-480.0,0.00019338,2]
[387594452,1758779177185,-480.0,0.00019338,2]
[387594453,1758779177218,-480.0,0.00019338,2]
[387594454,1758779177250,-480.0,0.00019338,2]
[387594455,1758779177282,-501.96945239,0.00019338,2]
[387594456,1758779177315,-480.0,0.00019338,2]
[387594457,1758779177346,-480.0,0.00019338,2]
[387594458,1758779177378,-488.41674974,0.00019338,2]
[387594460,1758779186557,-480.0,0.00019338,2]
[387594461,1758779186588,-480.0,0.00019338,2]
[387594462,1758779186618,-480.0,0.00019338,2]
[387594463,1758779186652,-480.0,0.00019338,2]
[387594464,1758779186682,-484.36760473,0.00019338,2]
[387594465,1758779186711,-491.34273836,0.00019338,2]
[387594466,1758779186740,-480.0,0.00019338,2]
[387594467,1758779186770,-483.93724099,0.00019338,2]
[387594468,1758779186801,-480.0,0.00019338,2]
[387594469,1758779186828,-480.0,0.00019338,2]
[387594470,1758779186857,-60.79523233,0.00019338,2]
[387594471,1758779186998,-239.12436718,0.00019338,2]
[387594472,1758779187026,-480.0,0.00019338,2]
[387594473,1758779187055,-480.0,0.00019338,2]
[387594474,1758779187082,-480.0,0.00019338,2]
[387594475,1758779187112,-480.0,0.00019338,2]
[387594476,1758779187142,-480.0,0.00019338,2]
[387594477,1758779187170,-480.0,0.00019338,2]
[387594478,1758779187198,-480.0,0.00019338,2]
[387594479,1758779187232,-480.0,0.00019338,2]
[387594480,1758779187262,-480.0,0.00019338,2]
[387594481,1758779187292,-401.76126564,0.00019338,2]
[387594483,1758779196489,-78.23873436,0.00019338,2]
[387594484,1758779196518,-480.0,0.00019338,2]
[387594485,1758779196546,-480.0,0.00019338,2]
[387594486,1758779196574,-480.0,0.00019338,2]
[387594487,1758779196603,-480.0,0.00019338,2]
[387594488,1758779196632,-480.0,0.00019338,2]
[387594489,1758779196660,-480.0,0.00019338,2]
[387594490,1758779196687,-485.65973194,0.00019338,2]
[387594491,1758779196715,-480.0,0.00019338,2]
[387594492,1758779196744,-480.0,0.00019338,2]
[387594493,1758779196771,-489.22798665,0.00019338,2]
[387594494,1758779211631,-161.56846589,0.00019251,2]
[387594495,1758779211663,-480.0,0.00019337,2]
[387594496,1758779211691,-480.0,0.00019338,2]
[387594497,1758779211720,-480.0,0.00019338,2]
[387594498,1758779211748,-3166.06306822,0.00019338,2]
[387594499,1758779211927,-464.74693178,0.00019338,2]
[387594500,1758779211956,-481.36940069,0.00019338,2]
[387594501,1758779211985,-480.0,0.00019338,2]
[387594502,1758779212013,-482.61048095,0.00019338,2]
[387594503,1758779212041,-480.0,0.00019338,2]
[387594504,1758779212071,-544.44,0.00019338,2]
[387594505,1758779212099,-480.0,0.00019338,2]
[387594506,1758779212130,-480.0,0.00019338,2]
[387594507,1758779212157,-480.0,0.00019338,2]
[387594508,1758779212185,-480.0,0.00019338,2]
[387594509,1758779215627,-616.94142351,0.00019338,2]
[387594510,1758779215660,-480.0,0.00019338,2]
[387594511,1758779215689,-480.0,0.00019338,2]
[387594512,1758779215718,-480.0,0.00019338,2]
[387594513,1758779215749,-480.0,0.00019338,2]
[387594514,1758779215778,-480.0,0.00019338,2]
[387594515,1758779215808,-480.0,0.00019339,2]
[387594516,1758779215840,-174.83376275,0.00019339,2]
[387594517,1758779215868,-480.0,0.00019339,2]
[387594518,1758779215897,-201.28137564,0.00019339,2]
[387594519,1758779215924,-584.64556439,0.00019339,2]
[387594521,1758779232941,370.438913,0.00018349,2]
[387594523,1758779246104,-1482.5295768,0.00019273,2]
[387594524,1758779246125,-300.0,0.000193,2]
[387594525,1758779246147,-480.0,0.00019337,2]
[387594526,1758779246168,-505.73381712,0.00019337,2]
[387594527,1758779246190,-483.91675022,0.00019337,2]
[387594528,1758779246213,-480.0,0.00019337,2]
[387594529,1758779246236,-480.0,0.00019338,2]
[387594530,1758779246260,-480.0,0.00019338,2]
[387594531,1758779246281,-480.0,0.00019338,2]
[387594532,1758779246301,-480.0,0.00019339,2]
[387594533,1758779246323,-519.09157928,0.00019339,2]
[387594534,1758779246343,-480.0,0.00019339,2]
[387594535,1758779246363,-480.0,0.00019339,2]
[387594536,1758779246383,-480.0,0.00019339,2]
[387594537,1758779246404,-464.87612666,0.00019339,2]
[387594538,1758779246425,-480.0,0.00019339,2]
[387594539,1758779246445,-480.0,0.00019339,2]
[387594540,1758779246465,-480.0,0.00019339,2]
[387594541,1758779246486,-584.09111183,0.00019339,2]
[387594542,1758779246506,-480.0,0.00019339,2]
[387594543,1758779246530,-480.0,0.00019339,2]
[387594544,1758779246551,-480.0,0.00019339,2]
[387594545,1758779246572,-480.0,0.00019339,2]
[387594546,1758779246591,-500.0,0.00019351,2]
[387594547,1758779246610,-321.26438457,0.00019351,2]
[387594548,1758779246632,-480.0,0.00019351,2]
[387594549,1758779246653,-480.0,0.00019351,2]
[387594550,1758779246673,-480.0,0.00019351,2]
[387594551,1758779246695,-480.0,0.00019351,2]
[387594552,1758779246720,-500.0,0.00019351,2]
[387594553,1758779246740,-442.03017223,0.00019351,2]
[387594554,1758779246762,-500.0,0.00019351,2]
[387594555,1758779246781,-181.33228767,0.00019351,2]
[387594556,1758779246807,-500.0,0.00019351,2]
[387594557,1758779246829,-500.0,0.00019351,2]
[387594558,1758779246851,-500.0,0.00019351,2]
[387594559,1758779246872,-500.0,0.00019351,2]
[387594560,1758779246893,-500.0,0.00019351,2]
[387594561,1758779246915,-500.0,0.00019351,2]
[387594562,1758779246936,-500.0,0.00019351,2]
[387594563,1758779246959,-500.0,0.00019351,2]
[387594564,1758779246981,-500.0,0.00019351,2]
[387594565,1758779247004,-500.0,0.00019351,2]
[387594566,1758779247026,-500.0,0.00019351,2]
[387594567,1758779247047,-500.0,0.00019351,2]
[387594568,1758779247069,-500.0,0.00019351,2]
[387594569,1758779247091,-500.0,0.00019351,2]
[387594570,1758779247112,-500.0,0.00019351,2]
[387594571,1758779247133,-500.0,0.00019351,2]
[387594572,1758779247155,-500.0,0.00019351,2]
[387594573,1758779247176,-500.0,0.00019351,2]
[387594574,1758779247198,-500.0,0.00019351,2]
[387594575,1758779247220,-500.0,0.00019351,2]
[387594576,1758779247243,-500.0,0.00019351,2]
[387594577,1758779247265,-500.0,0.00019351,2]
[387594578,1758779247286,-500.0,0.00019351,2]
[387594579,1758779247309,-500.0,0.00019351,2]
[387594580,1758779247331,-169.33207684,0.00019351,2]
[387594581,1758779247353,-500.0,0.00019351,2]
[387594582,1758779247375,-650.0,0.00019351,2]
[387594583,1758779247396,-500.0,0.00019351,2]
[387594584,1758779247416,-370000.0,0.00019352,2]
[387594585,1758779247435,-500.0,0.00019373,2]
[387594586,1758779247455,-500.0,0.00019373,2]
[387594587,1758779247474,-500.0,0.00019373,2]
[387594588,1758779247494,-500.0,0.00019373,2]
[387594589,1758779247516,-480.0,0.00019611,2]
[387594590,1758779247538,-480.0,0.00019611,2]
[387594591,1758779247559,-480.0,0.00019611,2]
[387594592,1758779247581,-480.0,0.00019611,2]
[387594593,1758779247601,-480.0,0.00019612,2]
[387594594,1758779247622,-480.0,0.00019612,2]
[387594595,1758779247645,-480.0,0.00019612,2]
[387594596,1758779247769,-480.0,0.00019612,2]
[387594597,1758779247791,-332.1515486,0.00019612,2]
[387594598,1758779247812,-480.0,0.00019612,2]
[387594599,1758779247833,-480.0,0.00019612,2]
[387594600,1758779247854,-496.18705084,0.00019612,2]
[387594601,1758779247873,-3630.81,0.00019612,2]
[387594602,1758779247895,-544.44,0.00019612,2]
[387594603,1758779247917,-480.0,0.00019612,2]
[387594604,1758779247938,-480.0,0.00019612,2]
[387594605,1758779247959,-480.0,0.00019612,2]
[387594606,1758779248185,-480.0,0.00019612,2]
[387594607,1758779248207,-480.0,0.00019613,2]
[387594608,1758779248227,-480.0,0.00019613,2]
[387594609,1758779248250,-480.0,0.00019613,2]
[387594610,1758779248272,-480.0,0.00019613,2]
[387594611,1758779248295,-480.0,0.00019613,2]
[387594612,1758779248318,-480.0,0.00019625,2]
[387594613,1758779248340,-480.0,0.00019625,2]
[387594614,1758779248361,-480.0,0.00019625,2]
[387594615,1758779248383,-480.0,0.00019625,2]
[387594616,1758779248405,-480.0,0.00019885,2]
[387594617,1758779248426,-480.0,0.00019885,2]
[387594618,1758779248448,-480.0,0.00019885,2]
[387594619,1758779248468,-480.0,0.00019886,2]
[387594620,1758779248489,-480.0,0.00019886,2]
[387594621,1758779248512,-480.0,0.00019886,2]
[387594622,1758779248532,-480.0,0.00019886,2]
[387594623,1758779248552,-480.0,0.00019886,2]
[387594624,1758779248572,-3630.81,0.00019886,2]
[387594625,1758779248594,-480.0,0.00019886,2]
[387594626,1758779248616,-544.44,0.00019886,2]
[387594627,1758779248638,-480.0,0.00019886,2]
[387594628,1758779248658,-480.0,0.00019886,2]
[387594629,1758779248678,-480.0,0.00019887,2]
[387594630,1758779248698,-480.0,0.00019887,2]
[387594631,1758779248718,-240.3621039,0.00019887,2]
[387594632,1758779248741,-480.0,0.00019887,2]
[387594633,1758779248764,-480.0,0.00019899,2]
[387594634,1758779248786,-480.0,0.00019899,2]
[387594635,1758779248808,-480.0,0.00019899,2]
[387594636,1758779248829,-1210.63878084,0.000199,2]
[387594637,1758779248849,-508.80111578,0.00019921,2]
[387594638,1758779248869,-1000.0,0.00019921,2]
[387594639,1758779248889,-1000.0,0.00019921,2]
[387594640,1758779248909,-1000.0,0.00019921,2]
[387594641,1758779248930,-100000.0,0.0001999,2]
[387594642,1758779248952,-480.0,0.00020159,2]
[387594643,1758779248973,-480.0,0.00020159,2]
[387594644,1758779248993,-480.0,0.0002016,2]
[387594645,1758779249016,-480.0,0.0002016,2]
[387594646,1758779249036,-3630.81,0.0002016,2]
[387594647,1758779249058,-480.0,0.0002016,2]
[387594648,1758779249080,-544.44,0.0002016,2]
[387594649,1758779249100,-480.0,0.0002016,2]
[387594650,1758779249119,-480.0,0.0002016,2]
[387594651,1758779249139,-480.0,0.00020161,2]
[387594652,1758779249161,-480.0,0.00020161,2]
[387594653,1758779249182,-480.0,0.00020173,2]
[387594654,1758779249204,-480.0,0.00020173,2]
[387594655,1758779249226,-480.0,0.00020173,2]
[387594656,1758779249249,-480.0,0.00020433,2]
[387594657,1758779249270,-509.95447593,0.00020433,2]
[387594658,1758779249292,-480.0,0.00020434,2]
[387594659,1758779249313,-3630.81,0.00020434,2]
[387594660,1758779249336,-480.0,0.00020434,2]
[387594661,1758779249358,-544.44,0.00020434,2]
[387594662,1758779249379,-480.0,0.00020434,2]
[387594663,1758779249399,-480.0,0.00020434,2]
[387594664,1758779249421,-480.0,0.00020435,2]
[387594665,1758779249444,-480.0,0.00020447,2]
[387594666,1758779249465,-480.0,0.00020447,2]
[387594667,1758779249487,-480.0,0.00020447,2]
[387594668,1758779249507,-509.482403,0.00020468,2]
[387594669,1758779249529,-480.0,0.00020707,2]
[387594670,1758779249549,-480.0,0.00020708,2]
[387594671,1758779249570,-1275.85908549,0.00020708,2]
[387594672,1758779264578,-269.88657503,0.00019238,2]
[387594673,1758779265285,1808.11387811,0.00019078,2]
[387594674,1758779269562,-49.87109371,0.00019238,2]
[387594675,1758779356845,-926.44639939,0.00019237,2]
[387594676,1758779356879,-480.0,0.00019337,2]
[387594677,1758779356910,-480.0,0.00019337,2]
[387594678,1758779356940,-480.0,0.00019337,2]
[387594679,1758779356971,-480.0,0.00019337,2]
[387594680,1758779357002,-480.0,0.00019337,2]
[387594681,1758779357035,-488.53907316,0.00019337,2]
[387594682,1758779357066,-480.0,0.00019337,2]
[387594683,1758779357101,-480.0,0.00019337,2]
[387594684,1758779415694,1291.8099809,0.00018456,2]
[387594685,1758779416932,-480.0,0.00019337,2]
[387594686,1758779416962,-480.0,0.00019337,2]
[387594687,1758779416994,-480.0,0.00019337,2]
[387594688,1758779417025,-480.0,0.00019337,2]
[387594689,1758779417055,-491.82694816,0.00019337,2]
[387594690,1758779417084,-485.78060634,0.00019337,2]
[387594691,1758779417114,-481.67216273,0.00019337,2]
[387594692,1758779417145,-480.0,0.00019337,2]
[387594693,1758779417178,-480.0,0.00019337,2]
[387594694,1758779417208,-480.0,0.00019337,2]
[387594722,1758779432392,-480.0,0.00019337,2]
[387594724,1758779432403,-345.28110022,0.00019337,2]
[387594726,1758779432417,-134.71889978,0.00019337,2]
[387594728,1758779432427,-480.0,0.00019337,2]
[387594729,1758779432438,-480.0,0.00019338,2]
[387594731,1758779432449,-480.0,0.00019338,2]
[387594734,1758779432460,-480.0,0.00019338,2]
[387594737,1758779432471,-480.0,0.00019338,2]
[387594740,1758779432482,-480.0,0.00019338,2]
[387594742,1758779432493,-480.0,0.00019338,2]
[387594745,1758779432503,-480.0,0.00019338,2]
[387594747,1758779432514,-480.0,0.00019338,2]
[387594749,1758779432524,-480.0,0.00019338,2]
[387594751,1758779432535,-480.0,0.00019338,2]
[387594753,1758779432546,-124.07342661,0.00019338,2]
[387594755,1758779432559,-409.02657339,0.00019338,2]
[387594758,1758779432570,-480.0,0.00019338,2]
[387594761,1758779432580,-480.0,0.00019339,2]
[387594764,1758779432590,-480.0,0.00019339,2]
[387594765,1758779432600,-570.46,0.00019342,3]
[387594766,1758779432611,-480.0,0.00019351,2]
[387594767,1758779432621,-480.0,0.00019351,2]
[387594769,1758779432631,-19002.51342661,0.00019352,2]
[387594844,1758779438458,-309.42112056,0.00019351,2]
[387594845,1758779438468,-500.0,0.00019351,2]
[387594846,1758779438477,-188.02835778,0.00019351,2]
[387594847,1758779438489,-311.97164222,0.00019351,2]
[387594848,1758779438498,-81.07117375,0.00019351,2]
[387594849,1758779438510,-418.92882625,0.00019351,2]
[387594850,1758779438519,-500.0,0.00019351,2]
[387594851,1758779438529,-500.0,0.00019351,2]
[387594852,1758779438538,-223.53245379,0.00019351,2]
[387594853,1758779438548,-500.0,0.00019351,2]
[387594854,1758779438557,-500.0,0.00019351,2]
[387594855,1758779438567,-500.0,0.00019351,2]
[387594856,1758779438577,-500.0,0.00019351,2]
[387594857,1758779438587,-500.0,0.00019351,2]
[387594858,1758779438596,-6902.26099473,0.00019352,2]
[387594859,1758779438608,-344095.22557866,0.00019352,2]
[387594860,1758779438617,-161.56846588,0.00019511,2]
[387594861,1758779438627,-480.0,0.00019611,2]
[387594862,1758779438636,-480.0,0.00019611,2]
[387594863,1758779438647,-480.0,0.00019611,2]
[387594864,1758779438656,-480.0,0.00019611,2]
[387594865,1758779438666,-480.0,0.00019611,2]
[387594866,1758779438675,-480.0,0.00019611,2]
[387594867,1758779438684,-480.0,0.00019611,2]
[387594868,1758779438694,-480.0,0.00019611,2]
[387594869,1758779438703,-151.84063337,0.00019611,2]
[387594870,1758779438713,-480.0,0.00019611,2]
[387594871,1758779438722,-480.0,0.00019611,2]
[387594872,1758779438731,-480.0,0.00019612,2]
[387594873,1758779438741,-480.0,0.00019612,2]
[387594874,1758779438750,-480.0,0.00019612,2]
[387594875,1758779438759,-480.0,0.00019612,2]
[387594876,1758779438769,-480.0,0.00019612,2]
[387594877,1758779438778,-480.0,0.00019612,2]
[387594878,1758779438788,-480.0,0.00019612,2]
[387594879,1758779438797,-480.0,0.00019612,2]
[387594880,1758779438806,-150.42966953,0.00019612,2]
[387594881,1758779438815,-533.1,0.00019612,2]
[387594882,1758779438825,-480.0,0.00019612,2]
[387594883,1758779438834,-480.0,0.00019613,2]
[387594884,1758779438844,-480.0,0.00019613,2]
[387594885,1758779438853,-480.0,0.00019625,2]
[387594886,1758779438863,-480.0,0.00019625,2]
[387594887,1758779438872,-480.0,0.00019885,2]
[387594888,1758779438882,-480.0,0.00019885,2]
[387594889,1758779438892,-397.17835169,0.00019885,2]
[387594890,1758779438901,-480.0,0.00019885,2]
[387594891,1758779438910,-480.0,0.00019885,2]
[387594892,1758779438920,-480.0,0.00019885,2]
[387594893,1758779438929,-480.0,0.00019885,2]
[387594894,1758779438939,-480.0,0.00019886,2]
[387594895,1758779438948,-454.51955245,0.00019886,2]
[387594896,1758779438958,-480.0,0.00019886,2]
[387594897,1758779438967,-583.10476794,0.00019886,2]
[387594898,1758779438977,-613.89105678,0.00019886,2]
[387594899,1758779438986,-480.0,0.00019886,2]
[387594900,1758779438995,-480.0,0.00019886,2]
[387594901,1758779439005,-480.0,0.00019886,2]
[387594902,1758779439014,-533.1,0.00019886,2]
[387594903,1758779439024,-480.0,0.00019886,2]
[387594904,1758779439034,-480.0,0.00019899,2]
[387594905,1758779439043,-1211.59970972,0.000199,2]
[387594906,1758779439053,-160.0,0.0002,3]
[387594907,1758779439062,-178.55621229,0.00020082,2]
[387594908,1758779439072,-348.64461143,0.00020082,2]
[387594909,1758779439081,-500.0,0.00020082,2]
[387594910,1758779439091,-500.0,0.00020082,2]
[387594911,1758779439101,-480.0,0.00020159,2]
[387594912,1758779439110,-504.83,0.00020159,2]
[387594913,1758779439119,-480.0,0.00020159,2]
[387594914,1758779439129,-480.0,0.00020159,2]
[387594915,1758779439138,-480.0,0.00020159,2]
[387594916,1758779439147,-480.0,0.00020159,2]
[387594917,1758779439157,-480.0,0.0002016,2]
[387594918,1758779439166,-480.0,0.0002016,2]
[387594919,1758779439175,-480.0,0.0002016,2]
[387594920,1758779439185,-249.76916854,0.0002016,2]
[387594921,1758779439194,-533.1,0.0002016,2]
[387594922,1758779439204,-480.0,0.0002016,2]
[387594923,1758779439213,-480.0,0.00020433,2]
[387594924,1758779439223,-480.0,0.00020433,2]
[387594925,1758779439232,-480.0,0.00020433,2]
[387594926,1758779439241,-480.0,0.00020434,2]
[387594927,1758779439251,-400.95157247,0.00020434,2]
[387594928,1758779439261,-480.0,0.00020434,2]
[387594929,1758779439270,-533.1,0.00020434,2]
[387594930,1758779439280,-1021.83973664,0.0002063,2]
[387594931,1758779439289,-1000.0,0.0002063,2]
[387594932,1758779439298,-480.0,0.00020707,2]
[387594933,1758779439307,-480.0,0.00020707,2]
[387594934,1758779439316,-2354.95091451,0.00020708,2]
[387594935,1758779439326,-480.0,0.00020708,2]
[387594936,1758779439335,-480.0,0.00020708,2]
[387594937,1758779439345,-480.0,0.00020708,2]
[387594938,1758779439354,-480.0,0.00020708,2]
[387594939,1758779439367,-533.1,0.00020708,2]
[387594940,1758779439378,-618.53073764,0.00020851,2]
[387594941,1758779439388,-242.88,0.00020857,2]
[387594942,1758779439397,-500.0,0.00020918,2]
[387594943,1758779439407,-500.0,0.00020918,2]
[387594944,1758779439417,-501.51332219,0.00020918,2]
[387594945,1758779439426,-1211.59970944,0.00020972,2]
[387594946,1758779439436,-480.0,0.00020981,2]
[387594947,1758779439445,-480.0,0.00020981,2]
[387594948,1758779439455,-3630.81,0.00020982,2]
[387594949,1758779439465,-480.0,0.00020982,2]
[387594950,1758779439475,-480.0,0.00020982,2]
[387594951,1758779439484,-427.5,0.00020982,2]
[387594952,1758779439493,-480.0,0.00020982,2]
[387594953,1758779439502,-533.1,0.00020982,2]
[387594954,1758779439512,-500.0,0.00020994,2]
[387594955,1758779439521,-500.0,0.00020994,2]
[387594956,1758779439531,-500.0,0.00020994,2]
[387594957,1758779439540,-500.0,0.00020994,2]
[387594958,1758779439549,-500.0,0.00021217,2]
[387594959,1758779439559,-571.63619755,0.00021217,2]
[387594960,1758779439568,-480.0,0.00021255,2]
[387594961,1758779439577,-234.31053742,0.00021255,2]
[387594962,1758779439587,-3630.81,0.00021256,2]
[387594963,1758779439597,-480.0,0.00021256,2]
[387594964,1758779439609,-480.0,0.00021256,2]
[387594965,1758779439619,-533.1,0.00021256,2]
[387594966,1758779439628,-418.60072527,0.00021338,2]
[387594967,1758779439637,-1000.0,0.00021466,2]
[387594968,1758779439647,-960.0,0.0002147,2]
[387594969,1758779439656,-162.58,0.0002147,2]
[387594970,1758779439666,-162.58,0.0002147,2]
[387594971,1758779439675,-162.57,0.0002147,2]
[387594972,1758779439684,-480.0,0.00021529,2]
[387594973,1758779439694,-3630.81,0.0002153,2]
[387594974,1758779439703,-480.0,0.0002153,2]
[387594975,1758779439712,-480.0,0.0002153,2]
[387594976,1758779439722,-533.1,0.0002153,2]
[387594977,1758779439731,-1000.0,0.00021542,2]